[Event "87th Spanish Championship 2022"]
[Site "Linares"]
[Date "2022.08.15"]
[Round "6.27"]
[White "Ilinca Ilinca, Felix Antonio"]
[Black "Garza Marco, Sergio"]
[Result "1/2-1/2"]
[ECO "A10"]
[WhiteElo "2162"]
[BlackElo "2408"]
[Annotator "TA"]
[PlyCount "156"]
[EventDate "2022.08.11"]
[EventType "swiss"]
[EventCountry "ESP"]
[SourceTitle "playchess.com"]
[Source "ChessBase"]
[SourceQuality "1"]
[TimeControl "5400+30"]

{[%evp 12,156,23,14,28,10,35,21,28,15,15,-10,10,0,0,0,0,-14,-23,-24,-27,-65,-18,-20,-39,-21,-15,-28,105,-18,8,19,13,-32,0,0,15,-102,-96,-125,-112,-104,-91,-108,0,0,0,0,0,0,0,0,0,-1,0,0,14,22,21,35,227,227,329,0,0,0,0,0,0,-35,-15,-66,0,-20,0,0,0,0,0,0,0,0,0,0,2,0,0,0,0,0,11,0,0,0,20,20,20,20,32,8,8,8,11,8,8,8,8,8,8,8,8,8,8,8,8,8,8,8,8,8,8,8,8,8,8,8,8,8,8,8,50,50,50,50,50,50,50,50,50,50,50,50,50,50,50,50,50]} 1. c4 b6 {[%emt 0:00:00]} 2. Nc3 {[%emt 0:01:45]} Bb7 {[%emt 0:00:00]} 3. d4 {[%emt 0:01:13]} e6 {[%emt 0:00:22]} 4. a3 f5 {[%emt 0:00:06]} 5. Nf3 {[%emt 0:06:08]} Nf6 {[%emt 0:02:03]} 6. e3 Be7 {[%emt 0:00:08]} 7. Be2 {[%emt 0:14:32]} O-O {[%emt 0:03:19] A40: Unusual replies to 1 d4.} 8. O-O {[%emt 0:07:11]} Qe8 {[%emt 0:17:39]} 9. d5 {[%emt 0:23:22] [#]} Kh8 $146 {[%emt 0:07:33] The position is equal.} ({Predecessor:} 9... Bd6 10. Nb5 e5 11. b4 a6 12. Nxd6 cxd6 13. Bb2 Qe7 14. Rc1 a5 15. b5 Ne4 {1-0 (41) Valdezate Suarez,F (1986)-De Lamo Sevilla,J (1959) Benidorm 2010}) 10. Nd4 {[%emt 0:11:52]} Qg6 {[%emt 0:00:17]} 11. Bf3 {[%emt 0:04:03]} Ne4 {[%emt 0:00:11]} 12. Nxe4 {[%emt 0:01:39]} fxe4 {[%emt 0:00:47]} 13. Bh5 {[%emt 0:06:02]} Qh6 {[%emt 0:01:29]} 14. Bg4 {[%cal Rd5e6]} Bd6 {[%csl Gd6][%cal Rh6h2]} 15. h3 {[%emt 0:01:41][%cal Rd5e6]} exd5 {[%emt 0:01:23]} 16. Nf5 {[%emt 0:01:10] [#]} Qg6 {[%emt 0:07:39]} (16... Rxf5 $1 $15 {might be stronger.} 17. Bxf5 Qf6) 17. Nxd6 $11 {[%emt 0:01:32]} Qxd6 $40 {[%emt 0:00:03][%mdl 128] White needs to defend precisely.} 18. cxd5 {[%emt 0:01:49]} Bxd5 {[%emt 0:13:42][%cal Bb7d5,Bd5c4,Bc4d3][%mdl 32]} 19. b4 {[%emt 0:03:19]} Qe5 {[%emt 0:02:30] [#]} (19... Nc6 $11) 20. Rb1 {[%emt 0:01:26]} (20. Bb2 $1 $16 {[%cal Rb2e5][%mdl 512]} Qxb2 21. Qxd5) 20... Bc4 {[%emt 0:01:42]} 21. Bb2 {[%emt 0:00:28]} Qe7 {[%emt 0:00:11]} 22. Re1 {[%emt 0:00:59][%mdl 1024] White has compensation.} Bd3 {[%emt 0:08:56]} 23. Rc1 $1 {[%emt 0:00:20]} c5 {[%emt 0:00:06]} 24. Bc3 {[%emt 0:05:39]} (24. Be2 $1 $11 {remains equal.}) 24... Nc6 $17 {[%emt 0:02:57]} 25. Qd2 {[%emt 0:02:17]} d6 {[%emt 0:01:39]} 26. f4 {[%emt 0:00:40]} d5 {[%emt 0:02:02]} 27. b5 {[%emt 0:01:07]} Nb8 {[%emt 0:00:54]} (27... Bxb5 $6 28. Qxd5 Rad8 29. Qh5 $15) (27... Na5 $17 {Hoping for ...Nb3.} 28. Bxa5 bxa5 29. Qxa5 c4) 28. Be2 $1 $11 {[%emt 0:00:50]} Bxe2 {[%emt 0:02:31]} 29. Rxe2 {[%emt 0:00:08]} (29. Qxd5 $2 {[#]} Bxb5 $1 30. Red1 (30. Qxa8 $2 Bc6 $19) 30... Nc6 $19) 29... Rd8 {[%emt 0:00:07]} 30. Rf1 {[%emt 0:01:19]} Qf7 {[%emt 0:00:15]} 31. Rd1 {[%emt 0:01:36]} a6 {[%emt 0:00:32]} 32. a4 {[%emt 0:00:24]} axb5 {[%emt 0:00:37]} 33. axb5 {[%emt 0:00:05]} Ra7 {[%emt 0:00:15]} 34. Rf2 {[%emt 0:00:18]} Qe8 {[%emt 0:00:44] Strongly threatening ...d4.} 35. f5 {[%emt 0:01:14] Threatens to win with f6.} d4 $2 {[%emt 0:00:12]} (35... Qxb5 $2 36. f6 d4 37. fxg7+ Kg8 38. exd4 Rxg7 39. d5 $18) (35... Kg8 $14) 36. f6 $18 {[%emt 0:00:31]} Rad7 {[%emt 0:01:46]} (36... Qxb5 $2 37. fxg7+ Kg8 38. exd4 Rxg7 39. d5 $18) (36... gxf6 $142 37. Rxf6 dxc3 38. Qxd8 Qxd8 39. Rxd8+ Kg7) 37. f7 $2 {[%emt 0:00:53]} (37. fxg7+ $18 Rxg7 38. Bb2) 37... Rxf7 $11 {[%emt 0:01:47]} 38. Rxf7 {[%emt 0:00:06]} Qxf7 {[%emt 0:00:03]} 39. exd4 {[%emt 0:00:08]} Kg8 {[%emt 0:04:39]} 40. d5 {[%emt 0:01:15]} Nd7 {[%emt 0:00:28]} 41. Qg5 {[%emt 0:01:08]} (41. Rf1 $11 Nf6 42. Bxf6 gxf6 43. Rf5) 41... Rf8 {[%emt 0:02:14]} ({Better is} 41... Re8 $15) 42. Re1 {[%emt 0:00:28] Active counter play!} h6 {[%emt 0:00:04]} 43. Qg3 {[%emt 0:00:15]} Nf6 {[%emt 0:07:28]} 44. Bxf6 {[%emt 0:00:13]} Qxf6 {[%emt 0:00:01]} 45. Rxe4 {[%emt 0:00:14][%mdl 4096] Endgame KQR-KQR} Rd8 {[%emt 0:00:56]} 46. Re6 {[%emt 0:00:42]} Qd4+ {[%emt 0:00:05]} 47. Kh2 {[%emt 0:00:08]} Rxd5 {[%emt 0:01:14]} 48. Rxb6 {[%emt 0:00:17]} c4 {[%emt 0:01:11]} 49. Rxh6 {[%emt 0:00:44] Black must now prevent b6.} Rxb5 {[%emt 0:00:08] ...Rb1 is the strong threat.} 50. Rh4 {[%emt 0:00:28]} Qd5 {[%emt 0:00:36]} 51. Rg4 {[%emt 0:00:35]} Rb7 {[%emt 0:00:41]} 52. Qf4 {[%emt 0:01:18]} Rb4 {[%emt 0:03:49]} 53. Qc7 {[%emt 0:00:36][%csl Gg4][%cal Rc7g7]} Qf7 {[%emt 0:01:44]} 54. Qc8+ {[%emt 0:00:08]} Qf8 {[%emt 0:00:27]} 55. Rxc4 {[%emt 0:00:19] Qxf8+ would kill now.} (55. Qe6+ {keeps more tension.} Qf7 56. Qc6 Rb8 57. Rxc4 Qe8 58. Qc7) 55... Qxc8 {[%emt 0:00:21]} 56. Rxc8+ $14 {[%emt 0:00:06] KR-KR} Kf7 {[%emt 0:00:22]} 57. g4 {[%emt 0:00:12]} g5 {[%emt 0:00:11]} 58. Rc7+ {[%emt 0:00:19]} Kg6 {[%emt 0:00:07]} 59. Rc6+ {[%emt 0:00:07]} Kg7 {[%emt 0:00:05]} 60. Rc3 {[%emt 0:00:13]} Rb1 {[%emt 0:00:14]} 61. Kg3 {[%emt 0:00:24]} Rg1+ {[%emt 0:00:08]} 62. Kf3 {[%emt 0:00:36]} Ra1 {[%emt 0:00:11]} 63. Ke4 {[%emt 0:00:34]} Ra5 {[%emt 0:00:44]} 64. Rd3 {[%emt 0:00:07]} Kf6 {[%emt 0:00:15]} 65. Rd6+ {[%emt 0:00:14]} Kf7 $1 {[%emt 0:00:09]} ({Much less strong is} 65... Kg7 66. Rd5 Ra3 67. Rxg5+ Kh6 68. Rh5+ (68. h4 Ra4+ 69. Kf3 Ra3+ 70. Kf4 Ra4+ 71. Kg3 Ra3+ 72. Kf2 Ra2+ 73. Kg1 Ra1+ 74. Kh2 Ra2+ 75. Kh3 Ra3+ 76. Kh2 Ra2+ 77. Kh3 Ra3+ 78. Kh2 Ra2+ $16) 68... Kg6 69. Kf4 $16 (69. h4 Ra4+ 70. Kf3 Ra3+ 71. Kf4 Ra4+ 72. Kg3 Ra3+ 73. Kf2 Ra2+ 74. Kf3 Ra3+ 75. Kg2 Ra4 $16)) 66. Rd5 {[%emt 0:00:13]} Ra3 $1 {[%emt 0:00:19]} 67. Kf5 {[%emt 0:00:11]} Rxh3 {[%emt 0:00:04]} 68. Rd7+ {[%emt 0:00:17]} Kg8 {[%emt 0:00:27]} 69. Kg6 {[%emt 0:00:08][%cal Rd7d8]} Rf3 {[%emt 0:00:05]} 70. Kxg5 Rf8 71. Kg6 {[%emt 0:00:27] White is slightly better.} Ra8 {[%emt 0:00:35]} 72. Rd6 $1 {[%emt 0:00:06] Inhibits Ra6.} Rb8 {[%emt 0:00:00]} 73. g5 {[%emt 0:00:00][%cal Bg4g5,Bg5g6][%mdl 32]} Ra8 {[%emt 0:00:00]} 74. Kh6 Rb8 {[%emt 0:00:00]} 75. g6 {[%emt 0:00:37]} Ra8 {[%emt 0:00:00]} 76. Rd7 {[%emt 0:00:14]} Rb8 {[%emt 0:00:00]} 77. Rg7+ {[%emt 0:00:10]} Kh8 {[%emt 0:00:00]} 78. Ra7 {[%emt 0:00:26]} Kg8 {Weighted Error Value: White=0.20 (precise) /Black=0.23 (precise)} 1/2-1/2

[Event "87th Spanish Championship 2022"]
[Site "Linares"]
[Date "2022.08.15"]
[Round "6.28"]
[White "Alvarez Fernandez, Enrique"]
[Black "Horcajuelo Rocamora, Martin"]
[Result "1-0"]
[ECO "D41"]
[WhiteElo "2329"]
[BlackElo "2107"]
[Annotator "TA"]
[PlyCount "87"]
[EventDate "2022.08.11"]
[EventType "swiss"]
[EventCountry "ESP"]
[SourceTitle "playchess.com"]
[Source "ChessBase"]
[SourceQuality "1"]
[TimeControl "5400+30"]

{[%evp 21,87,10,32,36,40,11,14,0,3,0,0,0,0,-16,-16,-58,-12,-15,-14,-14,3,20,200,181,181,154,206,74,112,111,128,122,237,0,0,0,0,0,132,143,159,-25,-46,-59,-69,-62,-29,-177,450,431,391,379,416,337,469,445,453,444,374,289,1151,476,472,375,454,361,1621,1224]} 1. d4 {[%emt 0:01:29]} d5 {[%emt 0:00:47]} 2. c4 {[%emt 0:00:31]} e6 {[%emt 0:00:35]} 3. Nf3 {[%emt 0:01:07]} Nf6 {[%emt 0:00:18]} 4. Nc3 {[%emt 0:00:23]} c5 {[%emt 0:01:00]} 5. cxd5 {[%emt 0:01:13]} Nxd5 {[%emt 0:00:37]} 6. e4 {[%emt 0:00:43]} Nxc3 {[%emt 0:00:13]} 7. bxc3 {[%emt 0:00:02]} cxd4 {[%emt 0:00:11]} 8. cxd4 {[%emt 0:00:11]} Bb4+ {[%emt 0:00:09]} 9. Bd2 {[%emt 0:00:10]} Bxd2+ {[%emt 0:00:06]} 10. Qxd2 {[%emt 0:00:06]} O-O {[%emt 0:00:10]} 11. Bc4 {[%emt 0:03:04][%cal Bf1c4,Bc4b3,Bb3c2][%mdl 32]} Nd7 {[%emt 0:02:37]} 12. O-O {[%emt 0:02:19] D41: Queen's Gambit Declined: Semi-Tarrasch with 5 cxd5.} b6 {[%emt 0:01:01]} 13. Rad1 {[%emt 0:07:34]} Bb7 {[%emt 0:01:20]} 14. d5 {[%emt 0:09:20] The position is equal.} exd5 {[%emt 0:04:44]} 15. exd5 {[%emt 0:01:55]} Rc8 {[%emt 0:04:21]} 16. Bb3 {[%emt 0:05:07]} Nc5 {[%emt 0:03:04]} 17. Bc2 {[%emt 0:08:01] [#]} Qf6 $146 {[%emt 0:05:29]} ({Predecessor:} 17... h6 18. Rfe1 Qd6 19. Nh4 Rfe8 20. Nf5 Qf6 21. d6 Rxe1+ 22. Qxe1 Rf8 23. d7 g6 {1-0 (34) Khomeriki,N (2319)-Shuvalova,P (2454) Chess.com INT 2020}) 18. Rfe1 {[%emt 0:02:53]} Rfd8 {[%emt 0:09:24]} (18... Rcd8 $15 {is superior.}) 19. Re5 $11 {[%emt 0:01:40]} Nd7 {[%emt 0:03:52]} 20. Re3 {[%emt 0:05:15]} Nc5 {[%emt 0:03:27]} 21. d6 {[%emt 0:16:18]} g6 $2 {[%emt 0:05:59]} (21... Ne6 $11) 22. Ne5 $1 $18 {[%emt 0:03:48]} Rf8 {[%emt 0:10:37]} 23. Ree1 {[%emt 0:09:53]} Rcd8 {[%emt 0:02:28]} (23... h5 $16 {might work better.} 24. d7 Rcd8) 24. f4 {[%emt 0:00:54]} (24. d7 Bc6 $11) (24. Ng4 $1 $18 {[%cal Rg4f6] is the precise move to win.} Qg7 25. Nh6+ Kh8 26. Re7) 24... Rfe8 {[%emt 0:06:50]} 25. Bb3 {[%emt 0:00:45] White is more active.} Nxb3 {[%emt 0:02:04]} 26. axb3 {[%emt 0:00:01]} Re6 {[%emt 0:00:36]} (26... Kg7 $16) 27. d7 $2 {[%emt 0:01:33]} ({White has to play} 27. Ng4 $1 $18 {[%cal Rg4f6]} Rxe1+ 28. Rxe1) 27... Qe7 $11 {[%emt 0:01:21]} 28. b4 {[%emt 0:07:36]} f6 {[%emt 0:01:42]} 29. Ng4 $36 {[%emt 0:01:34][%mdl 2048] White has the initiative.} Kh8 {[%emt 0:18:10] [#]} (29... Kf7 $11 {remains equal.}) 30. Rxe6 $1 $16 {[%emt 0:07:14]} Qxe6 {[%emt 0:00:04] [#]} 31. Qd4 $2 {[%emt 0:02:32]} Kg7 $11 {[%emt 0:00:32]} 32. Ne3 {[%emt 0:00:22]} Bc6 {[%emt 0:01:45][%cal Rd8d7]} 33. f5 $1 {[%emt 0:00:16]} Qe4 {[%emt 0:02:18]} ({Don't do} 33... Qxd7 34. Qc4 Qxd1+ 35. Nxd1 Rxd1+ 36. Kf2 $16) 34. Qc3 {[%emt 0:00:13]} (34. Qxe4 $11 Bxe4 35. fxg6) 34... gxf5 $4 {[%emt 0:01:14][%mdl 8192]} (34... Rxd7 $19 35. Rxd7+ Bxd7 36. fxg6 hxg6) 35. Rd6 $18 {[%emt 0:00:57][%csl LRc6,LRf6]} Rxd7 {[%emt 0:01:00]} 36. Rxc6 {[%emt 0:00:28] Dancing on a razor blade.} Rf7 {[%emt 0:01:57]} 37. h3 {[%emt 0:00:15]} h5 {[%emt 0:00:16]} 38. Rc4 {[%emt 0:00:11]} Qe5 {[%emt 0:00:58]} 39. Qd3 {[%emt 0:00:31]} Kg6 {[%emt 0:00:18]} 40. Nd5 {[%emt 0:00:33] Black must now prevent Nf4+.} h4 $2 {[%emt 0:00:37]} (40... Rd7) 41. Nf4+ {[%emt 0:00:23]} (41. Rg4+ $142 Kh7 42. Rxh4+ Kg8 43. Ne3) 41... Kg7 {[%emt 0:00:17]} 42. Qf3 {[%emt 0:01:13] Nd3 is the strong threat.} Rd7 {[%emt 0:00:26]} 43. Rc1 {[%emt 0:00:39]} Rd4 $2 {[%emt 0:01:36] [#]} (43... Re7 44. Kh2 Qe4) 44. Rc7+ $3 {[%emt 0:00:23][%mdl 512] Weighted Error Value: White=0.54/Black=0.54} 1-0

[Event "87th Spanish Championship 2022"]
[Site "Linares"]
[Date "2022.08.15"]
[Round "6.29"]
[White "Gomez Carreno, Martin"]
[Black "Garrido Diaz, Jose Antonio"]
[Result "1-0"]
[ECO "C70"]
[WhiteElo "2155"]
[BlackElo "2306"]
[Annotator "TA"]
[PlyCount "131"]
[EventDate "2022.08.11"]
[EventType "swiss"]
[EventCountry "ESP"]
[SourceTitle "playchess.com"]
[Source "ChessBase"]
[SourceQuality "1"]
[TimeControl "5400+30"]

{[%evp 12,131,41,43,56,14,14,-2,28,16,64,51,75,-18,0,0,12,11,8,0,0,0,35,43,66,73,67,70,140,56,51,-13,52,37,44,-117,-127,-127,-136,-133,-131,-110,0,-395,-374,-656,-604,-549,-59,-165,-157,-260,-254,-264,-267,-341,-252,-292,-287,-260,-83,-77,0,0,0,0,0,0,18,0,0,0,8,0,325,0,0,0,0,0,0,-211,-8,-8,-8,-8,0,0,18,-8,-8,-54,0,-4025,-3669,-4116,0,0,0,0,456,441,441,82,375,364,699,697,1030,967,1934,1878,1581,1338,807,800,785,775,758,708,29983,29984]} 1. e4 {[%emt 0:00:01]} e5 {[%emt 0:00:09]} 2. Nf3 {[%emt 0:00:06]} Nc6 {[%emt 0:00:05]} 3. Bb5 {[%emt 0:00:05][%cal Bf1b5,Bb5a4,Ba4b3][%mdl 32]} a6 {[%emt 0:00:31]} 4. Ba4 {[%emt 0:00:08]} b5 {[%emt 0:00:20]} 5. Bb3 {[%emt 0:00:06]} Na5 {[%emt 0:00:26]} 6. O-O {[%emt 0:04:52]} d6 {[%emt 0:01:00]} 7. d4 {[%emt 0:06:42]} exd4 {[%emt 0:00:50] The main line 7...exd4 scores better than 7...Nxb3. C70: Ruy Lopez: 3...a6 4 Ba4, Norwegian and Delayed Schliemann.} 8. Qxd4 {[%emt 0:00:58][%cal Ob3f7] Hoping for Bxf7+!} (8. Nxd4 $5 {[%cal Rb3d5]} Bb7 9. Bd2 Nxb3 10. Nxb3 $14) 8... Bb7 {[%emt 0:01:34]} 9. c4 {[%emt 0:09:48]} c5 {[%emt 0:18:08] The position is equal.} 10. Qd3 {[%emt 0:04:10] [#]} Nxb3 $146 {[%emt 0:07:02]} (10... Nf6 $11) ({Predecessor:} 10... Nf6 11. Nc3 Be7 12. cxb5 axb5 13. Bd5 Nxd5 14. Nxd5 O-O 15. Bf4 Bf6 16. Nxf6+ Qxf6 17. Qxd6 Bxe4 18. Qxf6 gxf6 {1-0 (57) Svidler,P (2754)-Mamedyarov,S (2719) Moscow 2009}) 11. Qxb3 $14 {[%emt 0:08:59]} b4 {[%emt 0:03:53]} 12. Bg5 (12. a3 $16) 12... Be7 $1 $11 13. Qa4+ {[%emt 0:03:17]} Kf8 {[%emt 0:05:07]} 14. Bxe7+ {[%emt 0:00:34]} Nxe7 {[%emt 0:07:25]} 15. Nbd2 {[%cal Bb1d2,Bd2f1,Bf1g3][%mdl 32]} h5 {[%emt 0:00:59]} 16. Rad1 {[%emt 0:06:35]} Qc7 17. Rfe1 {[%emt 0:05:41]} f6 {[%emt 0:04:46]} 18. Nf1 {[%emt 0:06:00]} Kf7 19. Qc2 {White is more active.} Rhe8 {[%emt 0:13:10]} (19... Rae8 $14) 20. Qd2 {[%emt 0:04:17]} (20. Nh4 $16) 20... Rad8 $14 21. Qf4 {[%emt 0:06:05]} ({White should try} 21. Nh4 $14) 21... Bc8 {[%emt 0:01:39]} (21... Qd7 $11) 22. Ng3 g6 {[%emt 0:02:33]} 23. e5 $2 {[%emt 0:10:37]} (23. b3 $14) 23... dxe5 $17 {[%emt 0:09:07]} 24. Nxe5+ {[%emt 0:00:24] [#]} Qxe5 $3 {[%emt 0:01:36][%mdl 512]} 25. Rxe5 {[%emt 0:00:06]} Rxd1+ {[%emt 0:00:05]} 26. Nf1 {[%emt 0:00:05]} g5 {[%emt 0:12:14]} (26... Rd4 $17 27. Re4 g5) 27. Qf3 {[%emt 0:07:19][%mdl 8192]} (27. Rxg5 Ng6 28. Rxg6 Kxg6 $17) (27. Qe4 $1 $11 Bf5 28. Rxf5 Nxf5 29. Qxf5) 27... Bg4 $19 {[%emt 0:00:49]} 28. Qb3 {[%emt 0:00:06]} (28. Qxd1 Bxd1 29. Rxc5) 28... fxe5 {[%emt 0:01:01]} 29. f3 {[%emt 0:00:09] [#]} Rxf1+ {[%emt 0:03:49]} 30. Kxf1 {[%emt 0:00:03]} Be6 {[%emt 0:00:04]} 31. Qd3 {[%emt 0:00:50]} (31. Qe3 $17) 31... Nf5 {[%emt 0:00:12]} 32. b3 {[%emt 0:00:32]} g4 {[%emt 0:01:02]} 33. Qe4 {[%emt 0:01:25]} Kf6 {[%emt 0:00:27]} 34. f4 {[%emt 0:01:02]} exf4 {[%emt 0:00:15]} 35. Qxf4 {[%emt 0:00:05]} Bd7 $2 {[%emt 0:00:40]} (35... Rc8 $19 {is more deadly. aiming for ...a5.} 36. h4 gxh3 37. gxh3 h4) 36. Qc7 $17 {[%emt 0:00:30][%csl LRc5,LRd7] [#]} Ne3+ {[%emt 0:00:40]} ({Black should play} 36... g3 $1 $17 {And now ...gxh2 would win.} 37. hxg3 Ne3+ 38. Kg1 Ng4 $1 39. Qd6+ Be6) 37. Kg1 $11 {[%emt 0:00:16]} Bf5 {[%emt 0:02:17]} 38. Qxc5 {[%emt 0:00:51]} Kg5 {[%emt 0:01:28]} 39. Qxb4 {[%emt 0:00:59]} Re4 {[%emt 0:01:04]} 40. g3 {[%emt 0:00:38][%mdl 1024] White has compensation.} h4 {[%emt 0:00:24]} 41. Qd2 {[%emt 0:01:25]} Kh5 {[%emt 0:01:00]} 42. c5 {[%emt 0:00:12] Threatens to win with gxh4.} Nc2 $2 {[%emt 0:01:53][%mdl 8192]} 43. c6 $2 {[%emt 0:00:24]} ({White must play} 43. gxh4 $1 $18 {[%csl Gh4][%cal Rd2g5]} Re1+ 44. Kg2 Be4+ 45. Kg3 Re3+ 46. Kf4) 43... Nd4 {[%emt 0:00:49] ( -> ...Nf3+)} 44. Qa5 {[%emt 0:00:50]} Re5 {[%emt 0:00:41]} 45. Qd8 {[%emt 0:01:31] Chess con chili.} Nxc6 {[%emt 0:00:23]} 46. Qxh4+ {[%emt 0:00:09]} Kg6 {[%emt 0:00:03]} 47. Qh8 {[%emt 0:00:07] Prevents Re8.} Kf7 {[%emt 0:00:41] Strongly threatening ...Bd3.} 48. Qa8 {[%emt 0:00:24]} Be4 {[%emt 0:01:07]} 49. Qxa6 {[%emt 0:00:33]} Rc5 {[%emt 0:00:51]} 50. b4 {[%emt 0:01:07]} Rc2 {[%emt 0:00:05]} 51. Qf1+ {[%emt 0:01:49]} (51. Qb7+ $11 Kf6 52. Qd7) 51... Bf3 {[%emt 0:01:02]} ({Better is} 51... Ke6 $1 $15 52. Qa6 Ke5) 52. h3 $2 {[%emt 0:01:35][%mdl 8192] [#]} ({Wrong is} 52. b5 $2 Nd4 53. a4 Ne2+ 54. Kf2 Rc1 55. Qxc1 Nxc1 $19) (52. Qd3 $11 Rg2+ 53. Kf1) 52... Nd4 $1 $19 {[%emt 0:00:26]} ({Weaker is} 52... Rg2+ 53. Qxg2 Bxg2 54. Kxg2 $11) 53. hxg4 {[%emt 0:00:03] [#]} Kg7 $2 {[%emt 0:00:37]} (53... Kg8 $1 $19 54. Qa6 Rg2+ 55. Kf1 Be2+ 56. Kxg2 Bxa6) 54. Qa1 $1 $11 {[%emt 0:00:49]} Rd2 {[%emt 0:00:29]} 55. Qc3 {[%emt 0:00:09]} Rd1+ {[%emt 0:00:11][%mdl 8192]} (55... Bc6 $1 $11 {and Black has nothing to worry.}) 56. Kf2 $18 {[%emt 0:00:13]} Bxg4 {[%emt 0:00:13]} 57. Ke3 $2 {[%emt 0:00:54]} (57. b5 $18 {and White stays clearly on top.}) 57... Be6 $2 {[%emt 0:01:02][%mdl 8192] A mistake that costs the game.} (57... Bd7 $16 58. Qc5 Kg6 59. Qb6+ Kf7) 58. a4 {[%emt 0:01:19]} ({Much less strong is} 58. b5 Bxa2 59. b6 Bd5 60. Qc7+ Kg6 $18) 58... Bd7 {[%emt 0:00:23]} (58... Kf7 59. b5 Nf5+ 60. Kf2 Rb1) 59. a5 {[%emt 0:00:26]} Kf6 {[%emt 0:00:13]} 60. a6 {[%emt 0:01:46]} Ke5 {[%emt 0:00:14]} 61. a7 {[%emt 0:00:38]} Bc6 {[%emt 0:00:21]} 62. Qc5+ {[%emt 0:00:33]} Ke6 {[%emt 0:00:49] [#]} 63. Qxc6+ $3 {[%emt 0:00:08][%mdl 512]} Nxc6 {[%emt 0:00:03]} 64. a8=Q {[%emt 0:00:06]} Ne5 {[%emt 0:00:53]} 65. Qe8+ {[%emt 0:00:17]} Kf5 {[%emt 0:00:07]} 66. Qh5+ {[%emt 0:00:09] Weighted Error Value: White=0.81/Black=0.77} 1-0

[Event "87th Spanish Championship 2022"]
[Site "Linares"]
[Date "2022.08.15"]
[Round "6.30"]
[White "Comellas Martos, Lidia"]
[Black "Cesar Maestre, Bernardo"]
[Result "0-1"]
[ECO "B51"]
[WhiteElo "2132"]
[BlackElo "2343"]
[Annotator "TA"]
[PlyCount "68"]
[EventDate "2022.08.11"]
[EventType "swiss"]
[EventCountry "ESP"]
[SourceTitle "playchess.com"]
[Source "ChessBase"]
[SourceQuality "1"]
[TimeControl "5400+30"]

{[%evp 9,68,22,12,10,14,18,8,10,32,29,52,60,80,70,77,71,83,37,28,26,60,42,57,20,20,18,43,7,22,30,29,-23,-19,-16,-5,-14,-10,-20,-20,-43,-36,-40,-37,-225,-226,-224,-189,-390,-382,-378,-358,-343,-332,-358,-327,-539,-538,-621,-594,-564,-530]} 1. e4 {[%emt 0:00:03]} c5 {[%emt 0:00:06]} 2. Nf3 {[%emt 0:00:11]} d6 {[%emt 0:00:04]} 3. Bb5+ {[%emt 0:00:08]} Nd7 {[%emt 0:00:05]} 4. Ba4 {[%emt 0:00:13]} Ngf6 {[%emt 0:00:24]} 5. O-O {[%emt 0:00:18]} g6 {[%emt 0:00:34]} 6. Re1 {[%emt 0:01:13] B51: Sicilian: Moscow Variation (3 Bb5+) without 3...Bd7.} Bg7 {[%emt 0:00:16]} 7. c3 {[%emt 0:00:13]} O-O {[%emt 0:02:46]} 8. d4 {[%emt 0:02:16] The position is equal.} cxd4 {[%emt 0:10:42]} 9. cxd4 {[%emt 0:03:52] [#]} Ne8 $146 {[%emt 0:07:50]} ({Predecessor:} 9... Nb6 10. Bb3 Bg4 11. h3 Bxf3 12. Qxf3 Nfd7 13. Qd1 Rc8 14. Nc3 a6 15. Bg5 Bf6 {1-0 (67) David,A (2557)-Martinez Alcantara,J (2583) Le Blanc Mesnil 2019}) 10. Bb3 {[%emt 0:06:46]} Nb8 {[%emt 0:05:30]} 11. h3 {[%emt 0:06:56]} Nc6 {[%emt 0:02:18]} 12. Nc3 {[%emt 0:01:01]} Nc7 {[%emt 0:00:22]} 13. Nd5 {[%emt 0:20:42]} (13. a3 $16) 13... Nxd5 {[%emt 0:12:33]} 14. Bxd5 {[%emt 0:05:10]} Qb6 {[%emt 0:03:52][%cal Rc6d4]} 15. Be3 {[%emt 0:01:38]} Bd7 {[%emt 0:19:04]} 16. Bb3 {[%emt 0:19:27] [#] Threatens to win with d5.} Na5 {[%emt 0:10:05]} 17. d5 {[%emt 0:03:09]} Qb4 {[%emt 0:01:44]} 18. Bd4 {[%emt 0:01:42]} (18. Bd2 $5 {[%cal Rd2b4]} Qb5 19. Bc2 $14) 18... Rfc8 {[%emt 0:00:28]} 19. Bxg7 {[%emt 0:07:27]} Kxg7 {[%emt 0:00:05]} 20. Qd4+ {[%emt 0:00:38]} (20. e5 $142) 20... Qxd4 $11 {[%emt 0:00:07]} 21. Nxd4 {[%emt 0:00:06]} Nc4 {[%emt 0:00:34]} 22. Bxc4 {[%emt 0:02:47]} Rxc4 {[%emt 0:00:10]} 23. Red1 {[%emt 0:00:18]} Rac8 {[%emt 0:00:09]} 24. Kf1 {[%emt 0:02:37]} f5 {[%emt 0:01:48]} 25. f3 {[%emt 0:00:29]} Kf6 {[%emt 0:00:06]} 26. Ke2 $2 {[%emt 0:01:03] Loses the game.} (26. b3 $15 Rc3 27. Rd2) 26... Ke5 $1 $19 {[%emt 0:00:18][%csl LRd4,LRe4]} 27. Nb3 {[%emt 0:03:46]} fxe4 {[%emt 0:00:11]} 28. f4+ $2 {[%emt 0:00:44]} (28. Nd2 {was necessary.} exf3+ 29. Nxf3+ Kf6 30. Rd2) 28... Kxf4 {[%emt 0:00:47]} 29. Rf1+ {[%emt 0:00:14]} Ke5 {[%emt 0:03:49]} 30. Rf7 {[%emt 0:00:14]} Re8 {[%emt 0:00:42]} ({Weaker is} 30... Kxd5 31. Rxe7 Be6 32. Rd1+ Ke5 33. Rxb7 $19) 31. Rd1 {[%emt 0:00:49]} Rc2+ {[%emt 0:00:30]} 32. Ke3 $2 {[%emt 0:00:04]} (32. Rd2 {might work better.} Rxd2+ 33. Nxd2) 32... Rxg2 {[%emt 0:00:12] Black is clearly winning.} 33. Nd2 {[%emt 0:01:19][%cal Rd2c4] [#]} Rg3+ {[%emt 0:02:10]} 34. Kf2 {[%emt 0:00:31][%cal Rd2c4]} Rd3 {[%emt 0:00:10] Weighted Error Value: White=0.37/Black=0.09 (flawless)} 0-1